fUSD/lending_fUSD_20250216
["ID","MTS","AMOUNT","RATE_DAILY","PERIOD"]
[353269096,1739724642891,-119233.03379616,0.00010697,2]
[353269100,1739724642920,-245925.92633559,0.00010697,2]
[353269106,1739724642976,-1029.86235393,0.00010697,2]
[353269109,1739724642988,-361.45361106,0.00010697,2]
[353269114,1739724643030,-1500.50457247,0.00010697,2]
[353269281,1739724645652,-184.50906005,0.00010598,2]
[353269282,1739724645663,-9124.59571618,0.00010697,2]
[353269286,1739724645708,-744.6166125,0.00010697,2]
[353269289,1739724645815,-460.67173412,0.00010697,2]
[353269290,1739724645826,-1801.94061921,0.00010697,2]
[353269291,1739724645838,-659.56625898,0.00010697,2]
[353269292,1739724645849,-967.1442304,0.00010697,2]
[353269293,1739724645860,-1016.60000025,0.00010697,2]
[353269294,1739724645873,-1600.0,0.00010697,2]
[353269295,1739724645976,-1589.99999987,0.00010697,2]
[353269296,1739724645988,-496.302152,0.00010697,2]
[353269297,1739724646000,-1941.6692709,0.00010697,2]
[353269298,1739724646012,-1135.375005,0.00010697,2]
[353269299,1739724646024,-1454.51556309,0.00010697,2]
[353269300,1739724646036,-435.15,0.00010697,2]
[353269301,1739724646048,-4600.9855386,0.00010697,2]
[353269307,1739724913537,3118.66517373,0.00020159,120]
[353269308,1739724915027,3118.6651737,0.00020159,120]
[353269309,1739724915483,3118.6651737,0.00020159,120]
[353269310,1739724916486,3118.6651737,0.00020159,120]
[353269311,1739724917446,3118.6651737,0.00020159,120]
[353269312,1739724919023,3118.6651737,0.00020159,120]
[353269313,1739724920058,3118.6651737,0.00020159,120]
[353269314,1739724920517,3118.6651737,0.00020159,120]
[353269315,1739724921900,3118.6651737,0.00020159,120]
[353269316,1739724922541,3118.6651737,0.00020159,120]
[353269318,1739725016185,788.25,8.219e-05,2]
[353269324,1739725831846,-175.5724,8.836e-05,2]
[353269325,1739725831856,-155.26365258,9.18e-05,2]
[353269326,1739725831867,-44.73634742,9.18e-05,2]
[353269327,1739725831877,-200.0,9.501e-05,2]
[353269328,1739725831886,-281.55794804,9.616e-05,2]
[353269329,1739725831895,-150.0,9.616e-05,2]
[353269330,1739725831905,-150.0,9.616e-05,2]
[353269331,1739725831915,-200.0,9.719e-05,2]
[353269332,1739725831925,-164.78,9.743e-05,2]
[353269333,1739725831935,-2000.0,9.785e-05,2]
[353269334,1739725831945,-1500.0,9.795e-05,2]
[353269335,1739725831954,-1000.0,9.856e-05,2]
[353269336,1739725831965,-300.0,9.88e-05,2]
[353269337,1739725831974,-192.62,9.881e-05,2]
[353269338,1739725831983,-7478.38,9.881e-05,2]
[353269339,1739725831992,-306.66,9.9e-05,2]
[353269340,1739725832001,-153.19,0.00010137,2]
[353269341,1739725832010,-788.25,0.00010467,2]
[353269342,1739725832020,-200.0,0.000105,3]
[353269343,1739725832029,-4999.99999901,0.000106,2]
[353269344,1739725832039,-2500.0,0.000106,2]
[353269345,1739725832047,-500.0,0.000106,3]
[353269346,1739725832057,-682.09081883,0.00010696,3]
[353269347,1739725832067,-500.0,0.00010696,2]
[353269348,1739725832076,-498.48,0.00010697,2]
[353269349,1739725832085,-25054.25488668,0.00010697,2]
[353269350,1739725832197,-294.29499367,0.00010697,2]
[353269351,1739725832220,-589.2249975,0.00010697,2]
[353269352,1739725832236,-385.91986734,0.00010697,2]
[353269353,1739725832247,-729.35629871,0.00010697,2]
[353269354,1739725832259,-3025766.59506918,0.00010697,2]
[353269355,1739725832274,-19940.09091753,0.00010697,2]
[353269356,1739725832285,-1280.644,0.00010697,2]
[353269359,1739725832295,-163.0,0.00010697,3]
[353269360,1739725832305,-800.0,0.000107,3]
[353269363,1739725832315,-287.61165658,0.000107,2]
[353269365,1739725832325,-500.0,0.00010773,2]
[353269367,1739725832335,-159.711936,0.00010773,2]
[353269369,1739725832345,-500.0,0.00010773,2]
[353269371,1739725832354,-258.3123091,0.00010799,3]
[353269373,1739725832364,-22307.1149918,0.000108,2]
[353269375,1739725832376,-4111.2273854,0.000108,2]
[353269377,1739725832387,-24284.97165762,0.000108,2]
[353269550,1739725837780,-331.46849174,0.00010597,2]
[353269551,1739725837791,-4639.87173526,0.000108,2]
[353269552,1739725837802,-1400.0,0.000108,2]
[353269553,1739725837833,-17498.67564213,0.000108,2]
[353269554,1739725837888,-570.075,0.000108,2]
[353269671,1739725839875,-1000.0,0.000108,2]
[353269672,1739725839930,-23009.59042858,0.000108,2]
[353269673,1739725839941,-258.63115522,0.000108,2]
[353269674,1739725839984,-1864333.31097618,0.000108,2]
[353269675,1739725839994,-1100.0,0.000108,3]
[353269676,1739725840003,-500.0,0.00010833,2]
[353269677,1739725840012,-420.0,0.00010868,2]
[353269678,1739725840021,-1400.0,0.000109,3]
[353269679,1739725840030,-500.0,0.00010958,2]
[353269680,1739725840040,-500.0,0.00010958,2]
[353269681,1739725840049,-500.0,0.00010958,2]
[353269682,1739725840059,-500.0,0.00010958,2]
[353269683,1739725840068,-426.30054232,0.00010958,2]
[353269684,1739725840077,-500.0,0.00010958,2]
[353269685,1739725840086,-500.0,0.00010958,2]
[353269686,1739725840096,-500.0,0.00010958,2]
[353269687,1739725840106,-500.0,0.00010958,2]
[353269688,1739725840114,-500.0,0.00010958,2]
[353269689,1739725840124,-500.0,0.00010958,2]
[353269690,1739725840133,-500.0,0.00010958,2]
[353269691,1739725840143,-500.0,0.00010958,2]
[353269692,1739725840152,-500.0,0.00010958,2]
[353269693,1739725840162,-500.0,0.00010958,2]
[353269694,1739725840172,-500.0,0.00010958,2]
[353269695,1739725840181,-485.89419282,0.00010958,2]
[353269696,1739725840191,-500.0,0.00010958,2]
[353269697,1739725840201,-570.88,0.00010958,2]
[353269698,1739725840212,-500.0,0.00010958,2]
[353269699,1739725840223,-500.0,0.00010958,2]
[353269700,1739725840234,-500.0,0.00010958,2]
[353269701,1739725840243,-301.10708469,0.00010958,2]
[353269702,1739725840252,-500.0,0.00010958,2]
[353269703,1739725840262,-500.0,0.00010958,2]
[353269704,1739725840271,-500.0,0.00010958,2]
[353269705,1739725840280,-500.0,0.00010958,2]
[353269706,1739725840291,-500.0,0.00010958,2]
[353269707,1739725840301,-500.0,0.00010958,2]
[353269708,1739725840311,-500.0,0.00010958,2]
[353269709,1739725840321,-500.0,0.00010958,2]
[353269710,1739725840331,-500.0,0.00010958,2]
[353269711,1739725840340,-500.0,0.00010958,2]
[353269712,1739725840350,-500.0,0.00010958,2]
[353269713,1739725840359,-500.0,0.00010958,2]
[353269714,1739725840368,-500.0,0.00010958,2]
[353269715,1739725840378,-500.0,0.00010958,2]
[353269716,1739725840387,-500.0,0.00010958,2]
[353269717,1739725840397,-500.0,0.00010958,2]
[353269718,1739725840406,-500.0,0.00010958,2]
[353269719,1739725840416,-500.0,0.00010958,2]
[353269720,1739725840425,-500.0,0.00010958,2]
[353269721,1739725840435,-500.0,0.00010958,2]
[353269722,1739725840444,-500.0,0.00010958,2]
[353269723,1739725840454,-465.0,0.00010958,2]
[353269724,1739725840463,-500.0,0.00010958,2]
[353269725,1739725840473,-500.0,0.00010958,2]
[353269726,1739725840483,-500.0,0.00010958,2]
[353269727,1739725840492,-500.0,0.00010958,2]
[353269728,1739725840501,-589.21,0.00010958,2]
[353269729,1739725840513,-500.0,0.00010958,2]
[353269730,1739725840522,-287.2420124,0.00010958,2]
[353269731,1739725840531,-500.0,0.00010958,2]
[353269732,1739725840541,-500.0,0.00010958,2]
[353269733,1739725840550,-500.0,0.00010958,2]
[353269734,1739725840559,-500.0,0.00010958,2]
[353269736,1739725840569,-334.17333074,0.00010958,2]
[353269737,1739725840578,-500.0,0.00010958,2]
[353269738,1739725840588,-672.3,0.00010958,2]
[353269739,1739725840597,-500.0,0.00010958,2]
[353269740,1739725840607,-500.0,0.00010958,2]
[353269741,1739725840616,-150.0,0.00010959,2]
[353269742,1739725840626,-500.0,0.00010964,2]
[353269743,1739725840636,-500.0,0.00010964,2]
[353269744,1739725840645,-500.0,0.00010964,2]
[353269745,1739725840655,-500.0,0.0001097,2]
[353269746,1739725840664,-299.84,0.00011,2]
[353269747,1739725840675,-2500.0,0.00011,2]
[353269748,1739725840685,-500.0,0.00011041,2]
[353269749,1739725840695,-500.0,0.00011041,2]
[353269750,1739725840704,-500.0,0.00011041,2]
[353269751,1739725840713,-500.0,0.00011041,2]
[353269752,1739725840722,-500.0,0.00011041,2]
[353269753,1739725840731,-500.0,0.00011041,2]
[353269754,1739725840741,-500.0,0.00011041,2]
[353269755,1739725840750,-500.0,0.00011041,2]
[353269756,1739725840759,-500.0,0.00011041,2]
[353269757,1739725840768,-500.0,0.00011041,2]
[353269758,1739725840778,-500.0,0.00011041,2]
[353269759,1739725840787,-500.0,0.00011041,2]
[353269760,1739725840797,-500.0,0.00011041,2]
[353269761,1739725840806,-500.0,0.00011041,2]
[353269762,1739725840815,-589.21,0.00011041,2]
[353269763,1739725840824,-500.0,0.00011041,2]
[353269764,1739725840833,-533.88220209,0.00011041,2]
[353269765,1739725840843,-500.0,0.00011041,2]
[353269766,1739725840852,-500.0,0.00011041,2]
[353269767,1739725840861,-500.0,0.00011041,2]
[353269768,1739725840871,-500.0,0.00011041,2]
[353269769,1739725840880,-672.3,0.00011041,2]
[353269770,1739725840889,-462.35039598,0.00011041,2]
[353269771,1739725840898,-500.0,0.00011041,2]
[353269772,1739725840908,-1000.0,0.00011088,2]
[353269773,1739725840918,-6687.99036193,0.00011099,2]
[353269774,1739725840927,-6687.9903619,0.00011099,2]
[353269775,1739725840936,-6687.9903619,0.00011099,2]
[353269776,1739725840946,-6687.9903619,0.00011099,2]
[353269777,1739725840955,-6687.9903619,0.00011099,2]
[353269778,1739725840965,-6687.9903619,0.00011099,2]
[353269779,1739725840975,-6687.9903619,0.00011099,2]
[353269780,1739725840985,-6687.9903619,0.00011099,2]
[353269781,1739725840994,-6687.9903619,0.00011099,2]
[353269782,1739725841004,-6687.9903619,0.00011099,2]
[353269783,1739725841013,-500.0,0.00011107,2]
[353269784,1739725841024,-500.0,0.00011123,2]
[353269785,1739725841034,-500.0,0.00011123,2]
[353269786,1739725841044,-500.0,0.00011123,2]
[353269787,1739725841053,-500.0,0.00011123,2]
[353269788,1739725841063,-500.0,0.00011123,2]
[353269789,1739725841072,-500.0,0.00011123,2]
[353269790,1739725841081,-434.07111994,0.00011123,2]
[353269791,1739725841091,-589.21,0.00011123,2]
[353269792,1739725841100,-500.0,0.00011123,2]
[353269793,1739725841109,-500.0,0.00011123,2]
[353269794,1739725841119,-500.0,0.00011123,2]
[353269795,1739725841128,-500.0,0.00011123,2]
[353269796,1739725841138,-500.0,0.00011123,2]
[353269797,1739725841147,-672.3,0.00011123,2]
[353269798,1739725841156,-500.0,0.00011123,2]
[353269799,1739725841166,-500.0,0.00011205,2]
[353269800,1739725841175,-500.0,0.00011205,2]
[353269801,1739725841185,-233.8,0.00011205,2]
[353269802,1739725841195,-500.0,0.00011205,2]
[353269803,1739725841204,-500.0,0.00011205,2]
[353269804,1739725841217,-589.21,0.00011205,2]
[353269805,1739725841226,-500.0,0.00011205,2]
[353269806,1739725841236,-500.0,0.00011205,2]
[353269807,1739725841245,-500.0,0.00011205,2]
[353269821,1739725841427,-500.0,0.00011205,2]
[353269823,1739725841437,-672.3,0.00011205,2]
[353269825,1739725841446,-500.0,0.00011205,2]
[353269826,1739725841456,-242.1,0.00011244,2]
[353269828,1739725841465,-500.0,0.00011287,2]
[353269830,1739725841475,-500.0,0.00011287,2]
[353269831,1739725841484,-500.0,0.00011287,2]
[353269833,1739725841493,-500.0,0.00011287,2]
[353269835,1739725841502,-589.21,0.00011287,2]
[353269837,1739725841512,-500.0,0.00011287,2]
[353269838,1739725841520,-500.0,0.00011287,2]
[353269840,1739725841529,-500.0,0.00011287,2]
[353269842,1739725841539,-500.0,0.00011287,2]
[353269844,1739725841547,-672.3,0.00011287,2]
[353269846,1739725841556,-500.0,0.00011287,2]
[353269848,1739725841565,-1000.0,0.00011321,2]
[353269849,1739725841574,-161.91,0.00011329,2]
[353269851,1739725841583,-500.0,0.00011369,2]
[353269853,1739725841592,-500.0,0.00011369,2]
[353269854,1739725841601,-500.0,0.00011369,2]
[353269856,1739725841610,-589.21,0.00011369,2]
[353269858,1739725841620,-500.0,0.00011369,2]
[353269860,1739725841629,-500.0,0.00011369,2]
[353269862,1739725841638,-500.0,0.00011369,2]
[353269863,1739725841647,-500.0,0.00011369,2]
[353269865,1739725841656,-672.3,0.00011369,2]
[353269867,1739725841665,-500.0,0.00011369,2]
[353269869,1739725841674,-686.2955908,0.00011427,2]
[353269870,1739725841683,-500.0,0.00011452,2]
[353269872,1739725841693,-500.0,0.00011452,2]
[353269874,1739725841702,-500.0,0.00011452,2]
[353269876,1739725841712,-589.21,0.00011452,2]
[353269878,1739725841722,-500.0,0.00011452,2]
[353269880,1739725841731,-500.0,0.00011452,2]
[353269881,1739725841740,-500.0,0.00011452,2]
[353269883,1739725841750,-500.0,0.00011452,2]
[353269885,1739725841759,-672.3,0.00011452,2]
[353269887,1739725841768,-207.96,0.00011452,2]
[353269888,1739725841776,-1023.07090867,0.00011531,3]
[353269890,1739725841786,-203.24034001,0.00011531,3]
[353269892,1739725841795,-500.0,0.00011534,2]
[353269894,1739725841804,-373.0153611,0.00011534,2]
[353269896,1739725841813,-500.0,0.00011534,2]
[353269898,1739725841823,-589.21,0.00011534,2]
[353269899,1739725841833,-500.0,0.00011534,2]
[353269901,1739725841842,-203.76475593,0.00011534,2]
[353269903,1739725841851,-500.0,0.00011534,2]
[353269905,1739725841861,-500.0,0.00011534,2]
[353269906,1739725841870,-672.3,0.00011534,2]
[353269908,1739725841879,-500.0,0.00011616,2]
[353269910,1739725841889,-500.0,0.00011616,2]
[353269912,1739725841898,-589.21,0.00011616,2]
[353269914,1739725841907,-500.0,0.00011616,2]
[353269916,1739725841916,-500.0,0.00011616,2]
[353269917,1739725841925,-500.0,0.00011616,2]
[353269919,1739725841935,-672.3,0.00011616,2]
[353269921,1739725841943,-500.0,0.00011698,2]
[353269922,1739725841952,-500.0,0.00011698,2]
[353269924,1739725841962,-589.21,0.00011698,2]
[353269926,1739725841971,-500.0,0.00011698,2]
[353269928,1739725841981,-500.0,0.00011698,2]
[353269930,1739725841990,-500.0,0.00011698,2]
[353269931,1739725841999,-672.3,0.00011698,2]
[353269933,1739725842009,-162.4,0.000117,2]
[353269935,1739725842019,-861.86908281,0.0001178,2]
[353269937,1739725842029,-385.10469407,0.0001178,2]
[353269939,1739725842038,-500.0,0.0001178,2]
[353269941,1739725842047,-589.21,0.0001178,2]
[353269942,1739725842056,-500.0,0.0001178,2]
[353269944,1739725842065,-500.0,0.0001178,2]
[353269946,1739725842074,-500.0,0.0001178,2]
[353269948,1739725842083,-672.3,0.0001178,2]
[353269950,1739725842092,-163.73133964,0.00011833,10]
[353269951,1739725842102,-500.0,0.00011863,2]
[353269953,1739725842110,-589.21,0.00011863,2]
[353269955,1739725842120,-500.0,0.00011863,2]
[353269957,1739725842129,-500.0,0.00011863,2]
[353269959,1739725842138,-500.0,0.00011863,2]
[353269960,1739725842147,-672.3,0.00011863,2]
[353269962,1739725842156,-175.24938405,0.000119,2]
[353269964,1739725842165,-500.0,0.00011945,2]
[353269966,1739725842174,-589.21,0.00011945,2]
[353269968,1739725842183,-500.0,0.00011945,2]
[353269969,1739725842192,-500.0,0.00011945,2]
[353269971,1739725842202,-500.0,0.00011945,2]
[353269973,1739725842213,-672.3,0.00011945,2]
[353269975,1739725842228,-587.0,0.00011955,2]
[353269976,1739725842236,-271.35,0.00012,2]
[353269977,1739725842245,-500.0,0.00012027,2]
[353269978,1739725842254,-589.21,0.00012027,2]
[353269979,1739725842265,-500.0,0.00012027,2]
[353269980,1739725842274,-500.0,0.00012027,2]
[353269981,1739725842282,-500.0,0.00012027,2]
[353269982,1739725842293,-672.3,0.00012027,2]
[353269983,1739725842302,-500.0,0.00012109,2]
[353269984,1739725842311,-589.21,0.00012109,2]
[353269985,1739725842320,-500.0,0.00012109,2]
[353269986,1739725842329,-500.0,0.00012109,2]
[353269987,1739725842343,-500.0,0.00012109,2]
[353269988,1739725842351,-672.3,0.00012109,2]
[353269989,1739725842361,-1023.07090866,0.00012161,3]
[353269990,1739725842370,-500.0,0.00012191,2]
[353269992,1739725842379,-589.21,0.00012191,2]
[353269994,1739725842388,-500.0,0.00012191,2]
[353269996,1739725842397,-500.0,0.00012191,2]
[353269998,1739725842407,-500.0,0.00012191,2]
[353270000,1739725842416,-672.3,0.00012191,2]
[353270002,1739725842425,-500.0,0.00012273,2]
[353270004,1739725842434,-589.21,0.00012273,2]
[353270006,1739725842444,-500.0,0.00012273,2]
[353270008,1739725842454,-500.0,0.00012273,2]
[353270010,1739725842463,-260.48083539,0.00012273,2]
[353270012,1739725842475,-672.3,0.00012273,2]
[353270014,1739725842485,-1000.0,0.0001232,2]
[353270016,1739725842495,-1284.19105783,0.00012322,2]
[353270018,1739725842504,-500.0,0.00012334,2]
[353270020,1739725842513,-500.0,0.00012334,2]
[353270022,1739725842523,-500.0,0.00012356,2]
[353270024,1739725842532,-589.21,0.00012356,2]
[353270026,1739725842541,-500.0,0.00012356,2]
[353270028,1739725842551,-469.78639913,0.00012356,2]
[353270030,1739725842560,-672.3,0.00012356,2]
[353270032,1739725842569,-233.30495349,0.00012438,2]
[353270034,1739725842578,-589.21,0.00012438,2]
[353270036,1739725842587,-500.0,0.00012438,2]
[353270038,1739725842597,-672.3,0.00012438,2]
[353270040,1739725842607,-589.21,0.0001252,2]
[353270042,1739725842615,-500.0,0.0001252,2]
[353270044,1739725842625,-672.3,0.0001252,2]
[353270046,1739725842635,-768.0,0.00012524,2]
[353270048,1739725842644,-163.0,0.00012581,3]
[353270049,1739725842654,-589.21,0.00012602,2]
[353270050,1739725842663,-500.0,0.00012602,2]
[353270051,1739725842672,-672.3,0.00012602,2]
[353270052,1739725842682,-589.21,0.00012684,2]
[353270053,1739725842691,-500.0,0.00012684,2]
[353270054,1739725842700,-672.3,0.00012684,2]
[353270055,1739725842711,-788.25,0.00012714,2]
[353270056,1739725842720,-589.21,0.00012767,2]
[353270058,1739725842730,-394.86171299,0.00012767,2]
[353270060,1739725842740,-672.3,0.00012767,2]
[353270062,1739725842749,-1508.0,0.0001283,2]
[353270064,1739725842759,-589.28635957,0.00012849,2]
[353270066,1739725842768,-672.37283964,0.00012849,2]
[353270068,1739725842777,-184.50906005,0.00012949,2]
[353270070,1739725842786,-550.0,0.00013,2]
[353270072,1739725842795,-823.0,0.0001315,2]
[353270074,1739725842805,-1000.0,0.00013552,2]
[353270076,1739725842814,-4837.1814981,0.00013698,2]
[353270078,1739725842824,-2356.26,0.00013698,3]
[353270080,1739725842834,-4000.0,0.00013699,2]
[353270082,1739725842843,-500.0,0.00013699,2]
[353270084,1739725842853,-544.68,0.00013699,2]
[353270086,1739725842862,-2176.4,0.00013699,2]
[353270088,1739725842871,-200.0,0.00013699,2]
[353270089,1739725842880,-327.89,0.00013699,2]
[353270091,1739725842889,-500.0,0.00013699,2]
[353270093,1739725842899,-151.7415088,0.00013699,2]
[353270095,1739725842908,-150.7432094,0.00013699,2]
[353270098,1739725842917,-159.727904,0.00013699,2]
[353270100,1739725842926,-159.727904,0.00013699,2]
[353270101,1739725842936,-517.84776976,0.00013699,2]
[353270102,1739725842945,-500.0,0.00013699,2]
[353270103,1739725842954,-284.67986444,0.00013699,2]
[353270104,1739725842963,-5554.0,0.000137,2]
[353270105,1739725842973,-500.0,0.00013704,2]
[353270106,1739725842982,-500.0,0.00013704,2]
[353270107,1739725842991,-500.0,0.00013704,2]
[353270108,1739725843001,-2356.26,0.00013972,3]
[353270109,1739725843010,-5553.0,0.000141,3]
[353270110,1739725843020,-161.91,0.00014162,2]
[353270111,1739725843030,-2356.26,0.00014246,3]
[353270112,1739725843039,-1000.0,0.00014247,2]
[353270113,1739725843049,-1000.0,0.00014247,2]
[353270114,1739725843057,-152.0,0.00014428,3]
[353270115,1739725843067,-163.0,0.00014465,3]
[353270116,1739725843076,-1152.0,0.00014466,2]
[353270117,1739725843085,-85237.0,0.000145,2]
[353270118,1739725843095,-5553.0,0.000145,5]
[353270119,1739725843104,-157.6233549,0.00014503,2]
[353270120,1739725843114,-2356.26,0.0001452,3]
[353270121,1739725843124,-150.0,0.00014584,2]
[353270122,1739725843133,-150.0,0.00014602,2]
[353270123,1739725843143,-150.0,0.00014641,2]
[353270124,1739725843153,-500.0,0.00014681,2]
[353270125,1739725843162,-500.0,0.00014681,2]
[353270126,1739725843172,-500.0,0.00014681,2]
[353270127,1739725843182,-500.0,0.00014682,2]
[353270128,1739725843191,-500.0,0.00014682,2]
[353270129,1739725843202,-500.0,0.00014682,2]
[353270130,1739725843215,-500.0,0.00014682,2]
[353270131,1739725843225,-150.0,0.00014689,2]
[353270132,1739725843234,-150.0,0.00014699,2]
[353270134,1739725843243,-150.0,0.00014709,2]
[353270135,1739725843256,-214.24579648,0.00014744,2]
[353270137,1739725843266,-1000.0,0.00014784,2]
[353270139,1739725843276,-24676.13000215,0.00014794,2]
[353270142,1739725843289,-2356.26,0.00014794,3]
[353270144,1739725843299,-300.0,0.00014799,2]
[353270146,1739725843309,-278.61764886,0.000148,2]
[353270148,1739725843319,-203.8,0.000148,2]
[353270149,1739725843328,-627503.914453,0.000148,3]
[353270150,1739725843338,-39744.84798177,0.000148,10]
[353270151,1739725843348,-1116336.53292112,0.000148,2]
[353270152,1739725843364,-1938.8340339,0.000148,2]
[353270153,1739725843375,-271.37002482,0.000148,2]
[353270154,1739725843395,-500.0,0.00010958,2]
[353270155,1739725843405,-54799.999999,0.000148,2]
[353270156,1739725843431,-25469.58281239,0.000148,2]
[353270157,1739725843442,-564.44779208,0.000148,2]
[353270158,1739725843453,-260.72299452,0.000148,2]
[353270159,1739725843465,-952.35014631,0.000148,2]
[353270160,1739725843484,-500.0,0.00011041,2]
[353270161,1739725843494,-102270.3605781,0.000148,2]
[353270162,1739725843627,-500.0,0.00011123,2]
[353270163,1739725843636,-500.0,0.00011205,2]
[353270164,1739725843646,-500.0,0.00011287,2]
[353270165,1739725843656,-500.0,0.00011369,2]
[353270166,1739725843667,-500.0,0.00011452,2]
[353270167,1739725843676,-500.0,0.00011534,2]
[353270168,1739725843686,-500.0,0.00011616,2]
[353270169,1739725843700,-500.0,0.00011698,2]
[353270170,1739725843711,-500.0,0.0001178,2]
[353270171,1739725843722,-146385.056036,0.000148,2]
[353270172,1739725843741,-66531.487626,0.000148,2]
[353270173,1739725843759,-292.8706028,0.000148,2]
[353270174,1739725843773,-500.0,0.000148,2]
[353270175,1739725843784,-683.01037561,0.000148,2]
[353270176,1739725843804,-472.45547172,0.00011863,2]
[353270179,1739725846120,-27.54452828,0.00011863,2]
[353270180,1739725846129,-500.0,0.00011945,2]
[353270181,1739725846139,-36.65547172,0.00012027,2]
[353270182,1739725846173,-463.34452828,0.00012027,2]
[353270183,1739725846182,-500.0,0.00012109,2]
[353270184,1739725846191,-500.0,0.00012191,2]
[353270185,1739725846201,-500.0,0.00012273,2]
[353270186,1739725846212,-500.0,0.00012356,2]
[353270187,1739725846225,-279.48018416,0.00012438,2]
[353270188,1739725846235,-1938.81681378,0.000148,2]
[353270229,1739727032095,-1537.9177,8.836e-05,10]
[353270230,1739727032106,-200.0,8.836e-05,2]
[353270231,1739727032115,-397.5599,8.836e-05,2]
[353270232,1739727032125,-777.32756562,8.836e-05,2]
[353270233,1739727032310,-3778.40323438,8.836e-05,2]
[353270234,1739727032320,-200.0,9.167e-05,2]
[353270235,1739727032331,-1000.0,9.676e-05,2]
[353270236,1739727032340,-200.0,9.719e-05,2]
[353270237,1739727032350,-200.0,9.945e-05,2]
[353270238,1739727032359,-500.0,9.973e-05,2]
[353270240,1739727032368,-200.0,9.998e-05,2]
[353270242,1739727032377,-150.0,9.999e-05,2]
[353270244,1739727032387,-24020.80927382,0.0001,2]
[353270246,1739727032399,-694317.58410829,0.0001,2]
[353270403,1739727038046,-293.57460293,0.0001,2]
[353270404,1739727038103,-97196.2934074,0.0001,2]
[353270405,1739727038162,-2187.7597717,0.0001,2]
[353270406,1739727038323,-19967.29063338,0.0001,2]
[353270422,1739727040248,-274.45280003,0.0001,2]
[353270423,1739727040259,-405.12721964,0.0001,2]
[353270424,1739727040411,-1814133.73440897,0.0001,2]
[353270425,1739727040421,-332.64413804,0.0001,2]
[353270426,1739727040430,-1678.91135626,0.0001,2]
[353270427,1739727040439,-1583733.2242806,0.0001,2]
[353270441,1739727043045,-3024.56986566,0.0001,2]
[353270447,1739727043209,-38385.0,0.0001,2]
[353270457,1739727046090,-1233.36057124,0.0001,2]
[353270458,1739727046146,-385768.29748303,0.0001,2]
[353270459,1739727046260,-16775.98420582,0.0001,2]
[353270460,1739727046271,-1554.61046167,0.0001,2]
[353270464,1739727256623,670.01,8.48e-05,2]
[353270465,1739727304430,150.0,8.48e-05,3]
[353270466,1739727365226,151.0,8.48e-05,3]
[353270468,1739727424672,151.0,8.48e-05,3]
[353270469,1739727487084,151.0,8.48e-05,3]
[353270470,1739727545728,151.0,8.48e-05,3]
[353270471,1739727605125,151.0,8.48e-05,3]
[353270472,1739727664599,151.0,8.48e-05,3]
[353270473,1739727725434,151.0,8.48e-05,3]
[353270479,1739728232222,-300.0,8.835e-05,2]
[353270480,1739728232232,-1169.69864955,8.836e-05,2]
[353270481,1739728232329,-17521.48595045,8.836e-05,2]
[353270482,1739728232338,-200.0,8.838e-05,2]
[353270483,1739728232348,-200.0,8.847e-05,2]
[353270484,1739728232357,-500.0,8.851e-05,2]